bitfinex/quotes_BTCUSD_20211001
["timestamp","ask_amount","ask_price","bid_price","bid_amount"]
[1633115651439,1.2866731,47939.0,47938.0,4.40202056]
[1633115651638,1.2866731,47939.0,47938.0,4.10945764]
[1633115652438,1.2696731,47939.0,47938.0,4.08245764]
[1633115652639,1.2696731,47939.0,47938.0,4.04633718]
[1633115653038,1.2696731,47939.0,47938.0,4.29853718]
[1633115653039,1.2886731,47939.0,47938.0,4.29853718]
[1633115653238,1.2886731,47939.0,47938.0,4.07533718]
[1633115653638,1.2886731,47939.0,47938.0,4.07526558]
[1633115653839,1.2886731,47939.0,47938.0,4.17526558]
[1633115654038,1.2886731,47939.0,47938.0,4.39846558]
[1633115654239,1.2886731,47939.0,47938.0,4.71130018]
[1633115654440,1.2696731,47939.0,47938.0,4.45902858]
[1633115655039,1.2696731,47939.0,47938.0,4.48702858]
[1633115655239,1.2696731,47939.0,47938.0,4.71022858]
[1633115656441,1.2696731,47939.0,47938.0,4.68222858]
[1633115657041,1.2696731,47939.0,47938.0,4.74734904]
[1633115658242,1.2696731,47939.0,47938.0,4.71122858]
[1633115658442,1.2696731,47939.0,47938.0,4.68222858]
[1633115658643,1.2696731,47939.0,47938.0,4.70052858]
[1633115658844,1.2696731,47939.0,47938.0,4.70060018]
[1633115659043,1.2696731,47939.0,47938.0,4.72960018]
[1633115659444,0.31313,47957.0,47939.0,3.58735554]
[1633115659647,1.1166,47958.0,47955.0,0.0012078]
[1633115659845,0.0004,47959.0,47955.0,0.0012078]
[1633115660048,0.0004,47959.0,47956.0,1.9]
[1633115660246,8.188e-05,47958.0,47957.0,0.49480809]
[1633115660445,8.188e-05,47958.0,47957.0,1.04951011]
[1633115660846,8.188e-05,47958.0,47957.0,0.8471075]
[1633115661047,8.188e-05,47958.0,47957.0,0.8611075]
[1633115662244,8.188e-05,47958.0,47957.0,1.04259309]
[1633115662445,8.188e-05,47958.0,47957.0,1.06462864]
[1633115662651,8.188e-05,47958.0,47957.0,1.06585913]
[1633115662849,8.188e-05,47958.0,47957.0,1.08415913]
[1633115663047,8.188e-05,47958.0,47957.0,1.11023073]
[1633115663246,8.188e-05,47958.0,47957.0,1.11015913]
[1633115663448,8.188e-05,47958.0,47957.0,1.33335913]
[1633115663646,8.188e-05,47958.0,47957.0,1.29732358]
[1633115664445,8.188e-05,47958.0,47957.0,1.27132358]
[1633115664846,8.188e-05,47958.0,47957.0,1.04812358]
[1633115665048,8.188e-05,47958.0,47957.0,1.17612358]
[1633115665264,8.188e-05,47958.0,47957.0,1.39932358]
[1633115665649,8.188e-05,47958.0,47957.0,1.17612358]
[1633115666452,8.188e-05,47958.0,47957.0,1.14812358]
[1633115667051,8.188e-05,47958.0,47957.0,1.17612358]
[1633115667856,8.188e-05,47958.0,47957.0,1.17619518]
[1633115668049,8.188e-05,47958.0,47957.0,1.21215913]
[1633115668651,8.188e-05,47958.0,47957.0,1.21223073]
[1633115669051,8.188e-05,47958.0,47957.0,1.21023073]
[1633115669253,8.188e-05,47958.0,47957.0,1.17419518]
[1633115670250,8.188e-05,47958.0,47957.0,2.48976142]
[1633115670457,1.88e-06,47958.0,47957.0,2.71424457]
[1633115670654,7.432e-05,47958.0,47957.0,2.71424457]
[1633115671051,7.432e-05,47958.0,47957.0,2.74624457]
[1633115671252,4.32e-06,47958.0,47957.0,2.74624457]
[1633115671453,0.0002,47966.0,47961.0,0.215024]
[1633115671652,0.0002,47966.0,47958.0,0.23]
[1633115671653,0.0004,47967.0,47965.0,0.21630232]
[1633115671854,0.0006,47979.0,47965.0,0.21630232]
[1633115671855,0.09433358,47978.0,47967.0,2.5502]
[1633115672052,0.09433358,47978.0,47977.0,2.55124259]
[1633115672260,0.09433358,47978.0,47977.0,0.50808303]
[1633115672261,0.0004,47978.0,47977.0,0.50808303]
[1633115672452,0.0004,47978.0,47977.0,2.72228772]
[1633115672852,0.0004,47978.0,47977.0,2.72221612]
[1633115673055,0.0004,47978.0,47977.0,2.75221612]
[1633115673454,0.0004,47978.0,47977.0,2.72991153]
[1633115674453,0.0004,47978.0,47977.0,2.92311153]
[1633115674653,0.0004,47978.0,47977.0,2.88723688]
[1633115675051,0.0006,47984.0,47977.0,2.88723688]
[1633115675052,0.01689622,47985.0,47978.0,2.85557932]
[1633115675256,0.01689622,47985.0,47984.0,0.45125169]
[1633115675451,0.01689622,47985.0,47984.0,0.59291031]
[1633115675655,0.01689622,47985.0,47984.0,2.80533031]
[1633115676453,0.00689622,47985.0,47984.0,2.80533031]
[1633115677052,0.00689622,47985.0,47984.0,2.83233031]
[1633115677853,0.00689622,47985.0,47984.0,2.24301969]
[1633115678051,0.00689622,47985.0,47984.0,2.02825169]
[1633115678259,0.00689622,47985.0,47984.0,1.9678385]
[1633115678454,0.00689622,47985.0,47984.0,1.9408385]
[1633115678655,0.00689622,47985.0,47984.0,2.1556065]
[1633115679054,0.00689622,47985.0,47984.0,2.30856836]
[1633115679254,0.0004,47987.0,47985.0,2.55]
[1633115679457,0.0004,47987.0,47986.0,2.85010838]
[1633115679655,0.00103715,47991.0,47987.0,0.214768]
[1633115679853,0.00103715,47991.0,47988.0,0.0183]
[1633115680053,0.00103715,47991.0,47989.0,2.3205442]
[1633115680255,0.00103715,47991.0,47990.0,0.26229619]
[1633115681256,0.00113271,47991.0,47990.0,0.28929619]
[1633115681456,0.00113271,47991.0,47990.0,0.50406419]
[1633115681655,0.00113271,47991.0,47990.0,0.241768]
[1633115681856,0.00113271,47991.0,47990.0,0.59480324]
[1633115682454,0.00113271,47991.0,47990.0,0.56780324]
[1633115682657,0.00113271,47991.0,47990.0,0.56909877]
[1633115682858,0.00113271,47991.0,47990.0,0.58747037]
[1633115683159,0.0006,47999.0,47995.0,0.0002]
[1633115683160,0.0002,47999.0,47995.0,0.0002]
[1633115683356,0.0002,48005.0,47999.0,0.214768]
[1633115683558,0.00015517,48007.0,48004.0,0.00255429]
[1633115683754,0.1806,48022.0,48008.0,0.214768]
[1633115683962,0.0008,48022.0,48012.0,0.214768]
[1633115684156,0.0006,48021.0,48018.0,2.55129759]
[1633115684356,0.0106,48029.0,48018.0,2.55129759]
[1633115684357,0.0106,48029.0,48022.0,0.214768]
[1633115684556,0.0106,48029.0,48026.0,0.214768]
[1633115684557,0.0002,48027.0,48026.0,0.214768]
[1633115684759,0.0002,48027.0,48026.0,1.34615386]
[1633115685058,0.0002,48027.0,48026.0,1.14615386]
[1633115685256,0.0002,48027.0,48026.0,0.88978472]
[1633115685456,0.0002,48027.0,48026.0,1.12882103]
[1633115685958,0.00372502,48027.0,48026.0,0.988568]
[1633115686355,0.00372502,48027.0,48026.0,0.9897858]
[1633115686557,0.00372502,48027.0,48026.0,0.958568]
[1633115686759,0.00372502,48027.0,48026.0,0.7438]
[1633115687055,0.0106,48029.0,48026.0,0.7438]
[1633115687056,0.00012502,48029.0,48026.0,0.7438]
[1633115687255,0.00012502,48029.0,48026.0,0.7738]
[1633115687455,0.00012502,48029.0,48027.0,0.214768]
[1633115687857,0.00103512,48028.0,48027.0,0.44954075]
[1633115688055,0.00103512,48028.0,48027.0,0.54954075]
[1633115688255,0.00103512,48028.0,48027.0,0.314768]
[1633115688454,0.00103512,48028.0,48027.0,0.62759331]
[1633115689253,0.00103512,48028.0,48027.0,0.65459331]
[1633115689455,0.00103512,48028.0,48027.0,0.65428126]
[1633115689655,0.00103512,48028.0,48027.0,0.127]
[1633115689656,0.00227686,48028.0,48027.0,0.127]
[1633115689961,2.55,48027.0,48024.0,1.9]
[1633115690155,2.51006185,48025.0,48018.0,0.1]
[1633115690354,0.008852,48021.0,48004.0,0.00127555]
[1633115690560,0.33534738,48009.0,48004.0,0.00127555]
[1633115690757,0.00076183,48005.0,47998.0,0.12381299]
[1633115690958,0.0539085,48008.0,48007.0,0.17890594]
[1633115691355,0.0539085,48008.0,48006.0,1.29923817]
[1633115691755,0.05400927,48008.0,48006.0,1.28923817]
[1633115692759,0.05400927,48008.0,48006.0,1.28799927]
[1633115692958,0.05355077,48008.0,48007.0,1.264495]
[1633115693159,0.08655077,48008.0,48007.0,1.264495]
[1633115693360,0.08655077,48008.0,48007.0,0.664495]
[1633115693556,0.08655077,48008.0,48006.0,1.30399927]
[1633115693759,0.08655077,48008.0,48007.0,2.114495]
[1633115694163,0.08655077,48008.0,48007.0,1.9]
[1633115694360,0.08655077,48008.0,48007.0,2.114495]
[1633115694560,0.05355077,48008.0,48006.0,1.28799927]
[1633115694962,0.05355077,48008.0,48007.0,2.764495]
[1633115695159,0.09555077,48008.0,48007.0,2.5226685]
[1633115695360,0.09555077,48008.0,48007.0,2.52396001]
[1633115695561,0.09555077,48008.0,48007.0,2.68162698]
[1633115695870,0.00012502,48029.0,48008.0,0.04328792]
[1633115696060,0.00012502,48029.0,48019.0,0.0012816]
[1633115696322,0.0093105,48028.0,48019.0,0.0012816]
[1633115696463,0.0004585,48028.0,48024.0,1.29982152]
[1633115696659,0.0004585,48028.0,48025.0,0.2361012]
[1633115697059,0.0004585,48028.0,48024.0,1.29982152]
[1633115697060,0.301292,48026.0,48024.0,1.29982152]
[1633115697261,0.301292,48026.0,48025.0,0.019]
[1633115697459,0.0017505,48026.0,48025.0,0.019]
[1633115697664,0.018,48028.0,48025.0,0.019]
[1633115697863,0.00124663,48026.0,48025.0,0.019]
[1633115698261,0.01009863,48026.0,48025.0,0.019]
[1633115698662,0.01009863,48026.0,48019.0,0.21074048]
[1633115698860,0.01009863,48026.0,48012.0,0.0012665]
[1633115699061,0.00124663,48026.0,48019.0,1.3]
[1633115699328,0.00124663,48026.0,48019.0,1.339]
[1633115699467,0.208196,48024.0,48019.0,1.339]
[1633115699662,0.208196,48024.0,48020.0,0.22863931]
[1633115699963,0.00012502,48029.0,48023.0,0.00128386]
[1633115700363,0.00012502,48029.0,48028.0,0.33351093]
[1633115700562,0.00012502,48029.0,48028.0,0.83045786]
[1633115700962,0.00012502,48029.0,48028.0,0.63186914]
[1633115701165,0.00012502,48029.0,48028.0,0.07948138]
[1633115702564,0.00012502,48029.0,48028.0,0.03748138]
[1633115703162,0.00012502,48029.0,48028.0,0.07748138]
[1633115704365,0.00897702,48029.0,48028.0,0.07748138]
[1633115704569,0.00897702,48029.0,48028.0,0.03748138]
[1633115704964,0.00897702,48029.0,48028.0,1.33748138]
[1633115705165,0.00012502,48029.0,48028.0,1.37548138]
[1633115705364,0.11012502,48029.0,48028.0,1.37548138]
[1633115705568,0.44167982,48029.0,48028.0,1.37548138]
[1633115705765,0.11012502,48029.0,48028.0,1.37548138]
[1633115706765,0.11012502,48029.0,48028.0,1.33748138]
[1633115707170,0.11012502,48029.0,48028.0,0.07548138]
[1633115707365,0.41897702,48029.0,48028.0,0.07548138]
[1633115707768,0.63596596,48029.0,48028.0,0.07548138]
[1633115707969,0.63607486,48029.0,48028.0,0.07548138]
[1633115708636,0.63607486,48029.0,48028.0,0.03876677]
[1633115709035,0.63607486,48029.0,48028.0,0.03748138]
[1633115709236,0.208151,48026.0,48008.0,0.00128869]
[1633115709437,0.63785892,48025.0,48008.0,0.00128869]
[1633115709636,0.008852,48024.0,48017.0,1.3]
[1633115710038,0.3,48021.0,48017.0,1.3]
[1633115710638,0.41641655,48022.0,48017.0,1.3]
[1633115710639,0.208211,48018.0,48017.0,1.3]
[1633115711036,2.46069804,48018.0,48017.0,0.64206773]
[1633115711338,1.32955004,48018.0,48017.0,0.0330833]
[1633115711537,1.2,48017.0,47999.0,0.24936412]
[1633115711736,1.2,48017.0,47993.0,0.00173494]
[1633115711737,0.208271,48010.0,47993.0,0.00173494]
[1633115711937,0.208274,48003.0,47996.0,0.00129056]
[1633115712137,0.344914,48003.0,48001.0,0.87385435]
[1633115712536,0.644914,48003.0,48001.0,0.87385435]
[1633115712737,0.35486425,48002.0,48001.0,0.87385435]
[1633115713138,0.35486425,48002.0,48001.0,0.87404482]
[1633115713337,0.35486425,48002.0,48001.0,0.90904482]
[1633115713338,0.35586425,48002.0,48001.0,0.90904482]
[1633115713537,2.90586425,48002.0,48001.0,0.03519047]
[1633115713738,2.41760125,48001.0,47993.0,0.00052]
[1633115713939,0.072469,47996.0,47993.0,0.00052]
[1633115714137,0.308852,47994.0,47993.0,0.00052]
[1633115714345,0.365752,47994.0,47993.0,0.00052]
[1633115714537,0.382352,47994.0,47993.0,0.00052]
[1633115714736,1.332352,47994.0,47993.0,0.00052]
[1633115714949,0.382352,47994.0,47993.0,0.00052]
[1633115715140,0.38363903,47994.0,47993.0,0.00052]
[1633115715337,0.71530436,47994.0,47993.0,0.00052]
[1633115715737,0.41363903,47994.0,47993.0,0.00052]
[1633115715941,0.038852,47994.0,47993.0,0.00052]
[1633115716138,0.038852,47994.0,47993.0,0.48713607]
[1633115716139,0.03,47994.0,47993.0,0.48713607]
[1633115716341,0.02280421,47994.0,47993.0,0.30226428]
[1633115716540,0.67841622,48001.0,47993.0,0.30052]
[1633115716739,0.008852,47997.0,47993.0,0.30052]
[1633115716938,0.008852,47996.0,47993.0,0.00052]
[1633115717137,0.508336,47998.0,47993.0,0.00052]
[1633115717335,0.033,47997.0,47995.0,7.144e-05]
[1633115718138,0.003,47997.0,47995.0,0.23127872]
[1633115718336,8.071e-05,47996.0,47995.0,0.23127872]
[1633115718537,8.071e-05,47996.0,47995.0,0.23833445]
[1633115718739,8.071e-05,47996.0,47995.0,0.30007144]
[1633115719142,8.071e-05,47996.0,47995.0,0.53571365]
[1633115719341,8.071e-05,47996.0,47995.0,0.5373318]
[1633115719541,8.071e-05,47996.0,47995.0,0.30168959]
[1633115719740,8.071e-05,47996.0,47995.0,0.3004228]
[1633115719940,8.071e-05,47996.0,47995.0,0.30171497]
[1633115720353,8.071e-05,47996.0,47995.0,0.54466196]
[1633115720740,8.071e-05,47996.0,47995.0,1.09383741]
[1633115720940,8.071e-05,47996.0,47995.0,0.98249696]
[1633115721141,8.071e-05,47996.0,47995.0,0.75929696]
[1633115721340,8.071e-05,47996.0,47995.0,0.3384228]
[1633115721942,0.29767895,47996.0,47995.0,0.3384228]
[1633115722142,0.3,47996.0,47995.0,0.3384228]
[1633115722342,0.20831,48000.0,47995.0,0.3384228]
[1633115722542,0.20829,47998.0,47995.0,0.2954228]
[1633115722747,0.11,47996.0,47995.0,0.33305125]
[1633115723343,0.11,47996.0,47995.0,0.60947107]
[1633115723543,0.11,47996.0,47995.0,3.59903879]
[1633115723544,2e-05,47996.0,47995.0,3.59903879]
[1633115723743,2e-05,47996.0,47995.0,3.60033242]
[1633115724146,1.25e-06,48001.0,47996.0,2.764635]
[1633115724345,0.00012502,48029.0,48022.0,0.34941295]
[1633115724543,0.00012502,48029.0,48025.0,0.15043313]
[1633115724745,0.00012502,48029.0,48026.0,0.27729862]
[1633115724945,0.05357502,48029.0,48026.0,0.27729862]
[1633115725145,0.00035695,48027.0,48023.0,0.29101348]
[1633115725349,0.00035695,48027.0,48023.0,0.38630833]
[1633115725546,0.05357502,48029.0,48026.0,2.55120019]
[1633115725744,0.05357502,48029.0,48028.0,2.15128212]
[1633115725745,0.00359502,48029.0,48028.0,2.15128212]
[1633115725943,0.0006,48030.0,48028.0,0.24925536]
[1633115726144,0.0006,48030.0,48029.0,3.04802711]
[1633115726444,0.00099262,48030.0,48029.0,0.72122711]
[1633115726645,0.00099262,48030.0,48029.0,0.28339211]
[1633115726852,0.00099262,48030.0,48025.0,0.3]
[1633115727244,0.00034506,48026.0,48025.0,0.3]
[1633115727745,0.00034506,48026.0,48025.0,0.48083116]
[1633115727949,0.00034506,48026.0,48025.0,0.76133085]
[1633115728145,0.00034506,48026.0,48025.0,1.03778335]
[1633115728345,0.00034506,48026.0,48025.0,0.79882559]
[1633115728546,0.00034506,48026.0,48025.0,1.03828337]
[1633115728748,0.00044329,48026.0,48025.0,1.03828337]
[1633115728946,0.00044329,48026.0,48025.0,0.79882559]
[1633115729345,0.00044329,48026.0,48025.0,0.5593259]
[1633115729549,0.00044329,48026.0,48025.0,0.80044705]
[1633115729747,0.00044329,48026.0,48025.0,3.41689741]
[1633115729946,0.00044329,48026.0,48025.0,3.17612762]
[1633115730348,0.00019414,48031.0,48029.0,0.12121246]
[1633115730551,0.00019414,48031.0,48030.0,0.46901165]
[1633115730746,0.00019414,48031.0,48030.0,1.31643822]
[1633115730945,0.00019414,48031.0,48030.0,0.51643822]
[1633115731152,0.13060899,48036.0,48031.0,2.55]
[1633115731546,7.137e-05,48032.0,48030.0,0.33427312]
[1633115731946,7.137e-05,48032.0,48030.0,0.333]
[1633115732547,7.137e-05,48032.0,48031.0,2.78060684]
[1633115732749,0.12568036,48036.0,48032.0,0.214635]
[1633115732947,0.12568036,48036.0,48031.0,0.23188613]
[1633115733153,0.12568036,48036.0,48032.0,0.2627589]
[1633115733349,0.14168036,48036.0,48032.0,0.03]
[1633115733550,0.44168036,48036.0,48032.0,0.03]
[1633115733951,0.44168036,48036.0,48035.0,0.03745021]
[1633115734350,0.55168036,48036.0,48035.0,0.03245021]
[1633115734551,0.53568036,48036.0,48035.0,0.03245021]
[1633115735349,0.57568036,48036.0,48035.0,0.03280157]
[1633115735757,0.27568036,48036.0,48035.0,0.03280157]
[1633115735951,0.1456,48036.0,48035.0,2.82358917]
[1633115736255,0.1456,48036.0,48035.0,0.66267756]
[1633115736450,0.16453105,48036.0,48035.0,0.66320766]
[1633115736651,0.02455105,48036.0,48035.0,3.61225508]
[1633115736853,0.0008,48040.0,48036.0,0.23356395]
[1633115737054,0.0008,48043.0,48039.0,0.00124892]
[1633115737252,0.0004,48048.0,48043.0,0.09883738]
[1633115737453,0.0008,48051.0,48047.0,0.00123553]
[1633115737454,0.01040739,48049.0,48047.0,0.00123553]
[1633115737651,0.00038739,48049.0,48048.0,0.3807291]
[1633115737851,0.00038739,48049.0,48048.0,1.33931515]
[1633115738050,0.00038739,48049.0,48048.0,1.19284217]
[1633115738254,0.00038739,48049.0,48048.0,1.41604217]
[1633115738458,9.474e-05,48049.0,48048.0,1.63067717]
[1633115738853,9.474e-05,48049.0,48048.0,1.94321927]
[1633115739052,9.474e-05,48049.0,48048.0,0.92701102]
[1633115739254,0.00020308,48049.0,48048.0,0.99314378]
[1633115739455,0.00020308,48049.0,48048.0,1.67060276]
[1633115739652,0.00020308,48049.0,48048.0,1.67113286]
[1633115739852,0.00020308,48049.0,48048.0,1.44740276]
[1633115740052,0.00020308,48049.0,48048.0,2.01944363]
[1633115740253,0.0004,48058.0,48048.0,1.22856427]
[1633115740254,0.01239129,48056.0,48048.0,1.22856427]
[1633115740455,0.00237129,48056.0,48049.0,0.23411585]
[1633115740655,0.00237129,48056.0,48048.0,0.9538813]
[1633115740854,0.00021407,48050.0,48048.0,0.9535813]
[1633115741059,0.00021407,48050.0,48048.0,0.95265276]
[1633115741255,0.00021407,48050.0,48049.0,3.00660858]
[1633115741454,0.00021407,48050.0,48049.0,3.37452876]
[1633115741653,0.00021407,48050.0,48049.0,3.99687518]
[1633115741853,3.493e-05,48050.0,48049.0,3.54400415]
[1633115742052,0.00955187,48050.0,48049.0,3.54400415]
[1633115742653,0.00955187,48050.0,48049.0,3.64400415]
[1633115742852,0.00955187,48050.0,48049.0,1.33316909]
[1633115743253,0.00237129,48056.0,48049.0,1.33316909]
[1633115743254,1.29e-06,48056.0,48050.0,0.22413313]
[1633115743456,0.0004,48058.0,48055.0,0.0037971]
[1633115743658,0.0004,48058.0,48057.0,0.00253855]
[1633115743853,0.0006,48059.0,48057.0,0.34426171]
[1633115744054,0.0006,48059.0,48057.0,0.13015681]
[1633115744256,0.0004,48059.0,48058.0,0.514635]
[1633115744456,0.001,48070.0,48058.0,0.9607724]
[1633115744457,0.0006,48060.0,48058.0,0.9607724]
[1633115744656,0.001,48070.0,48058.0,0.9607724]
[1633115744657,0.0004,48066.0,48059.0,0.26938564]
[1633115744859,0.0004,48066.0,48065.0,0.00127433]
[1633115745054,0.0004,48066.0,48065.0,0.18868339]
[1633115745256,0.0004,48066.0,48065.0,0.80751315]
[1633115745457,0.0004,48066.0,48065.0,0.62010409]
[1633115745855,0.0004,48066.0,48065.0,0.30127433]
[1633115746056,0.0004,48066.0,48065.0,0.30018413]
[1633115746262,0.01703988,48068.0,48066.0,0.311894]
[1633115746263,0.01283988,48068.0,48066.0,0.311894]
[1633115746460,0.01283988,48068.0,48067.0,0.45817641]
[1633115746657,0.01283988,48068.0,48067.0,1.08269641]
[1633115746855,0.01283988,48068.0,48067.0,1.43140681]
[1633115747056,0.01283988,48068.0,48067.0,1.43193691]
[1633115747256,0.01283988,48068.0,48067.0,1.2316575]
[1633115747455,0.00764438,48068.0,48067.0,3.5329513]
[1633115747655,0.00764438,48068.0,48067.0,1.2329513]
[1633115748057,0.00776438,48068.0,48067.0,1.2329513]
[1633115748459,0.00276438,48068.0,48067.0,3.7829513]
[1633115748660,0.0002,48087.0,48067.0,1.2329513]
[1633115748867,0.19077846,48083.0,48080.0,0.00126238]
[1633115749258,0.22326624,48091.0,48081.0,2.29963157]
[1633115749458,0.0008,48090.0,48082.0,0.26466568]
[1633115749858,0.0008,48090.0,48078.0,0.31087491]
[1633115749859,0.00012521,48081.0,48078.0,0.31087491]
[1633115750058,0.00012521,48081.0,48074.0,0.23965468]
[1633115750261,0.00012521,48081.0,48079.0,0.13516562]
[1633115751160,0.70122771,48080.0,48079.0,0.13516562]
[1633115751363,0.00122771,48080.0,48079.0,0.17116562]
[1633115751563,0.23886166,48080.0,48079.0,0.17116562]
[1633115751762,2.55,48078.0,48058.0,0.432419]
[1633115751965,0.30120891,48068.0,48067.0,0.62452]
[1633115752164,0.45602891,48068.0,48067.0,0.62452]
[1633115752362,0.15602891,48068.0,48067.0,0.72466267]
[1633115752564,0.15602891,48068.0,48067.0,0.85411386]
[1633115752565,0.15482,48068.0,48067.0,0.85411386]
[1633115752763,0.15482,48068.0,48067.0,1.2961722]
[1633115752962,0.12123724,48079.0,48067.0,1.8227062]
[1633115753163,0.12123724,48079.0,48070.0,0.09298335]
[1633115753363,0.12123724,48079.0,48071.0,0.22392946]
[1633115753564,0.12123724,48079.0,48074.0,0.1]
[1633115753767,0.42123724,48079.0,48074.0,0.1]
[1633115753968,0.12123724,48079.0,48074.0,0.1]
[1633115754565,0.12123724,48079.0,48078.0,1.52623549]
[1633115754767,0.12123724,48079.0,48078.0,1.88154462]
[1633115754965,0.12123724,48079.0,48078.0,2.63371817]
[1633115755365,0.12123724,48079.0,48078.0,3.91241817]
[1633115755567,0.12123724,48079.0,48078.0,3.91322277]
[1633115755568,0.06723724,48079.0,48078.0,3.91322277]
[1633115755768,0.06735724,48079.0,48078.0,2.68027993]
[1633115755966,0.06735724,48079.0,48078.0,0.94244493]
[1633115756169,0.06735724,48079.0,48078.0,0.94119185]
[1633115756367,0.06735724,48079.0,48078.0,2.96902896]
[1633115756572,0.06735724,48079.0,48078.0,1.59002896]
[1633115756766,0.06735724,48079.0,48078.0,1.35002685]
[1633115757166,0.06735724,48079.0,48078.0,1.45002685]
[1633115757370,0.06735724,48079.0,48078.0,1.48702685]
[1633115757568,0.06735724,48079.0,48078.0,1.26382685]
[1633115757766,0.06735724,48079.0,48078.0,1.48702685]
[1633115757967,0.06735724,48079.0,48078.0,1.48755695]
[1633115758166,0.06735724,48079.0,48078.0,1.04919185]
[1633115758369,0.01873222,48079.0,48078.0,3.58160459]
[1633115758566,0.03876771,48079.0,48078.0,0.99460459]
[1633115758767,0.03876771,48079.0,48078.0,1.20923959]
[1633115758968,0.03876771,48079.0,48078.0,0.99460459]
[1633115759366,0.03876771,48079.0,48078.0,1.24723959]
[1633115759567,0.03876771,48079.0,48078.0,1.0210041]
[1633115759766,0.03876771,48079.0,48078.0,0.8063691]
[1633115759966,0.03876771,48079.0,48078.0,0.45105997]
[1633115760168,0.03876771,48079.0,48078.0,0.138]
[1633115760369,0.04017236,48079.0,48078.0,0.138]
[1633115761167,0.0012902,48082.0,48078.0,0.038]
[1633115761366,0.0012902,48082.0,48078.0,0.05158726]
[1633115761574,0.207933,48081.0,48079.0,0.1]
[1633115761775,0.507933,48081.0,48079.0,0.1]
[1633115761968,0.207933,48081.0,48079.0,0.1]
[1633115762167,1.05124506,48080.0,48079.0,0.0997]
[1633115762369,0.3,48072.0,48069.0,0.00011889]
[1633115762568,0.00127242,48070.0,48069.0,0.00011889]
[1633115762770,0.00127242,48070.0,48055.0,0.36180493]
[1633115762771,0.20802055,48064.0,48055.0,0.36180493]
[1633115762967,0.20929843,48064.0,48059.0,0.1]
[1633115763168,0.29980977,48063.0,48059.0,0.1]
[1633115763568,0.29303295,48063.0,48059.0,0.1]
[1633115763969,0.29303295,48063.0,48059.0,0.095]
[1633115764172,0.01874734,48062.0,48059.0,0.095]
[1633115764375,0.01874734,48062.0,48061.0,2.55129595]
[1633115764671,0.01874734,48062.0,48061.0,2.54629595]
[1633115764868,0.07219734,48062.0,48061.0,2.54629595]
[1633115765069,0.01219734,48062.0,48061.0,2.76093095]
[1633115765337,0.032,48062.0,48061.0,0.007]
[1633115765537,2.55,48061.0,48042.0,0.00129467]
[1633115765734,2.55,48061.0,48032.0,0.05594244]
[1633115765735,0.00129501,48056.0,48043.0,0.62444]
[1633115765933,0.0166,48055.0,48051.0,0.0834]
[1633115766135,2.55,48054.0,48027.0,0.05614208]
[1633115766337,2.55,48054.0,48027.0,0.1]
[1633115766338,0.00124064,48032.0,48027.0,0.1]
[1633115766538,0.00126095,48028.0,48027.0,0.1]
[1633115766738,0.14221095,48028.0,48017.0,0.0004]
[1633115766940,0.3,48026.0,48024.0,0.02838523]
[1633115767134,0.00121676,48025.0,48024.0,0.02838523]
[1633115767334,0.15636138,48026.0,48024.0,0.02838523]
[1633115767538,0.28263676,48025.0,48024.0,0.02838523]
[1633115767737,2.70636138,48024.0,48017.0,0.0004]
[1633115767937,0.00124015,48020.0,48017.0,0.0004]
[1633115768135,0.00121261,48025.0,48024.0,0.19175166]
[1633115768346,0.24621,48028.0,48024.0,0.19175166]
[1633115768938,0.6078788,48028.0,48024.0,0.19175166]
[1633115769541,0.00127101,48026.0,48024.0,0.19175166]
[1633115769940,0.00127101,48026.0,48025.0,0.00045214]
[1633115770136,0.02343616,48027.0,48025.0,0.00045214]
[1633115770340,0.02343616,48027.0,48025.0,0.21141954]
[1633115770537,0.02343616,48027.0,48026.0,2.005245]
[1633115770736,0.02343616,48027.0,48026.0,0.234345]
[1633115770936,0.02343616,48027.0,48026.0,0.02954024]
[1633115771537,0.05743616,48027.0,48026.0,0.02954024]
[1633115771938,0.05743616,48027.0,48024.0,0.0212919]
[1633115772142,0.14724616,48028.0,48025.0,1.8]
[1633115772338,0.14724616,48028.0,48024.0,0.0212919]
[1633115772539,0.30122815,48034.0,48026.0,0.01422379]
[1633115773338,0.30122815,48034.0,48028.0,0.20835849]
[1633115773539,0.32622815,48034.0,48029.0,0.2071968]
[1633115773739,0.32622815,48034.0,48028.0,0.20835849]
[1633115773950,0.325,48034.0,48026.0,0.02622379]
[1633115774343,0.00121769,48033.0,48026.0,0.02622379]
[1633115774744,0.00121769,48033.0,48025.0,0.23068182]
[1633115774745,0.01173282,48032.0,48025.0,0.23068182]
[1633115774943,0.01173282,48032.0,48025.0,0.19174782]
[1633115775341,0.12173282,48032.0,48025.0,0.19174782]
[1633115775540,0.14873282,48032.0,48025.0,0.21574782]
[1633115775942,0.44873282,48032.0,48025.0,0.024]
[1633115776740,0.312253,48030.0,48025.0,0.024]
[1633115776942,0.42173282,48032.0,48026.0,0.1967614]
[1633115777141,0.42173282,48032.0,48024.0,0.0212919]
[1633115777543,0.208159,48029.0,48026.0,0.015]
[1633115777742,0.508159,48029.0,48026.0,0.015]
[1633115778142,0.508159,48029.0,48027.0,0.02593741]
[1633115778343,0.33489667,48028.0,48027.0,0.02593741]
[1633115778544,0.53614405,48028.0,48027.0,0.02593741]
[1633115779144,3.39614405,48028.0,48027.0,0.00318771]
[1633115779342,2.57622406,48028.0,48027.0,0.00318771]
[1633115779541,2.70997783,48028.0,48027.0,0.00318771]
[1633115779741,2.10997783,48028.0,48027.0,0.00318771]
[1633115780141,2.10997783,48028.0,48024.0,0.0212919]
[1633115780346,0.30125616,48025.0,48024.0,0.0212919]
[1633115780544,0.33015416,48025.0,48024.0,0.0212919]
[1633115780944,0.61355416,48025.0,48024.0,0.0212919]
[1633115781142,0.30125616,48025.0,48024.0,0.0212919]
[1633115781443,0.336,48025.0,48024.0,0.0212919]
[1633115781646,0.036,48025.0,48024.0,0.0212919]
[1633115781843,0.036,48025.0,48024.0,0.22994947]
[1633115782244,0.036,48025.0,48024.0,0.0212919]
[1633115782843,0.2313024,48028.0,48024.0,0.0212919]
[1633115783447,0.244202,48028.0,48024.0,0.0212919]
[1633115783644,0.55646,48028.0,48024.0,0.03086337]
[1633115783845,0.244202,48028.0,48024.0,0.03086337]
[1633115784245,0.124202,48028.0,48024.0,0.03086337]
[1633115784844,0.365713,48027.0,48024.0,0.03086337]
[1633115785050,0.3,48026.0,48024.0,0.02586337]
[1633115785245,0.05345,48025.0,48024.0,0.02586337]
[1633115785646,0.05345,48025.0,48024.0,0.3509389]
[1633115785848,0.05345,48025.0,48024.0,0.0112919]
[1633115786248,0.05345,48025.0,48024.0,0.12826296]
[1633115786447,0.05345,48025.0,48024.0,0.0112919]
[1633115786648,0.05466654,48025.0,48024.0,0.0112919]